Cogmind - Beta 15 @@@ ROGUE MODE // 2025.06.05 @ 00:56:35 // Winter2019/RPGLIKE Player: Jack Result: Self-destructed Performance ------------- Evolutions (1) 500 Regions Visited (2) 400 Robots Destroyed (7) 35 Value Destroyed (188) 188 Prototype IDs (1) 20 Alien Tech Used (0) 0 Bonus (0) 0 TOTAL SCORE: 1143 Bonus ------- None Cogmind --------- Core Integrity 274/600 Matter 290/300 Energy 37/100 System Corruption 0% Temperature Cool (0) Movement Core (150) Ox2 Location -9/Materials Parts ------- > --- POWER (1) -------- (None) > --- PROPULSION (2) --- (None) > --- UTILITY (1) ------ (None) > --- WEAPON (4) ------- Improved EM Shotgun Improved EM Shotgun Small Laser > --- INVENTORY (0) ---- (None) Peak State ------------ > --- POWER ------------ (None) > --- PROPULSION ------- (None) > --- UTILITY ---------- (None) > --- WEAPON ----------- Improved EM Shotgun Improved EM Shotgun Small Laser > --- INVENTORY -------- (None) [Rating: 7] Favorites ----------- Power None Propulsion Flight Unit Flight Unit Flight Unit Utility None Weapon Light Assault Rifle Energy Gun Improved EM Shotgun Ballistic Gun Light Assault Rifle Build | -11 -10 -9 ------- Run | Yrd Mat Mat Slots Evolved 4 | 4 . . Power . | . . . Propulsion 1 | 1 . . Utility . | . . . Weapon 3 | 3 . . Parts Attached 5 | 1 1 3 Power . | . . . Engine . | . . . Core . | . . . Reactor . | . . . Propulsion 1 | . 1 . Treads . | . . . Leg . | . . . Wheel . | . . . Hover . | . . . Flight 1 | . 1 . Utility . | . . . Device . | . . . Storage . | . . . Processor . | . . . Hackware . | . . . Protection . | . . . Artifact . | . . . Weapon 4 | 1 . 3 Energy Gun 3 | . . 3 Energy Cannon . | . . . Ballistic Gun 1 | 1 . . Ballistic Cannon . | . . . Launcher . | . . . Special Weapon . | . . . Impact Weapon . | . . . Slashing Weapon . | . . . Piercing Weapon . | . . . Special Melee Weapon . | . . . Unidentified Prototypes 1 | . . 1 Parts Lost 1 | . . 1 Power . | . . . Propulsion 1 | . . 1 Utility . | . . . Weapon . | . . . Highest Loss Streak 1 | . . 1 To Critical Strikes . | . . . Average Backups . | . . . Power . | . . . Propulsion . | . . . Utility . | . . . Weapon . | . . . Tool/Special . | . . . Unused Backups . | . . . Power . | . . . Propulsion . | . . . Utility . | . . . Weapon . | . . . Tool/Special . | . . . Average Slot Usage (%) 20 | . 16 23 Flight 7 | . 4 9 Energy Gun 1 | . . 1 Ballistic Gun 11 | . 12 11 Peak Build Rating 7 | 1 2 7 Average Rating 1 | . 1 2 On Entrance 1 | . 1 2 Naked Turns . | . . . Heaviest Build 6 | 1 1 6 Greatest Support 4 | 3 4 4 Greatest Overweight (x) 1 | . . 1 Average Overweight (x) . | . . . Largest Inventory Capacity . | . . . Average Capacity . | . . . Most Carried . | . . . Average Carried . | . . . Final Capacity . | . . . Final Carried . | . . . Class Distribution -------------------- 100% | Mutant Dominant Class ---------------- Mutant | -10/Materials Mutant | -9/Materials Resources | -11 -10 -9 ----------- Run | Yrd Mat Mat Matter Collected 278 | 210 . 68 Remotely . | . . . Salvage Created 169 | . 35 134 Parts 17 | . 6 11 Haulers Intercepted . | . . . Recyclers Shooed 2 | . . 2 Parts Field Recycled . | . . . Retrieved Matter . | . . . Parts Self-Destructed . | . . . Prevented . | . . . Kills | -11 -10 -9 ------- Run | Yrd Mat Mat Combat Hostiles Destroyed 7 | . 3 4 Guns 6 | . 3 3 AOE 1 | . . 1 Classes Destroyed 3 | . 1 2 Swarmer 3 | . 3 . Grunt 2 | . . 2 Sentry 2 | . . 2 Best Kill Streak 3 | . 3 2 Combat Bots Only 3 | . 3 2 Max Kills in Single Turn 1 | . 1 1 Gunslinging . | . . . Exploded 1 | . . 1 Melee . | . . . Uniques/NPCs Destroyed . | . . . Combat | -11 -10 -9 -------- Run | Yrd Mat Mat Hostile Shots Fired 78 | . 23 55 Missed 27 | . 5 22 Hits 51 | . 18 33 Projectile 51 | . 18 33 AOE 1 | . . 1 Critical Strikes 1 | . . 1 Damage Taken 705 | . 155 550 Core 626 | . 139 487 Absorbed by Shields . | . . . Redirected to Core 269 | . 51 218 Core Remaining (%) 91 | 100 82 . Volleys Fired 45 | . 12 33 Largest 2 | . 1 2 Hottest 90 | . 20 90 Shots Fired 47 | . 12 35 Gun 47 | . 12 35 Cannon . | . . . Launcher . | . . . Special . | . . . Kinetic 43 | . 12 31 Thermal . | . . . Explosive . | . . . Electromagnetic 4 | . . 4 Robot Hit Streak 9 | . 7 9 Robot Miss Streak 3 | . 3 3 Penetration Max . | . . . Secondary Targets 1 | . . 1 Max Gunslinging Chain 1 | . . 1 Shots Hit Robots 35 | . 8 27 Core Hits 14 | . 4 10 Critical Kills . | . . . Critical Parts Destroyed . | . . . Critical Strikes . | . . . Melee Attacks . | . . . Impact . | . . . Slashing . | . . . Piercing . | . . . Sneak Attacks . | . . . Combat Hostiles . | . . . Follow-up Attacks . | . . . Damage Inflicted 358 | . 67 291 Guns 332 | . 67 265 Cannons . | . . . Explosions 26 | . . 26 Melee . | . . . Ramming . | . . . Kinetic 275 | . 67 208 Thermal 26 | . . 26 Explosive . | . . . Electromagnetic 57 | . . 57 Impact . | . . . Slashing . | . . . Piercing . | . . . Highest Corruption . | . . . Average Corruption . | . . . Corruption Purged . | . . . Corruption Blocked . | . . . Overload Shots . | . . . Overflow Damage . | . . . Projectiles . | . . . Explosions . | . . . Melee . | . . . Knockbacks . | . . . Impact . | . . . Kinetic . | . . . Secondary . | . . . Self-Inflicted Damage 37 | . . 37 Shots 1 | . . 1 Rammed . | . . . Targets Rammed . | . . . Kicked . | . . . Crushed . | . . . Highest Temperature 53 | . . 53 Average Temperature 13 | . . 13 Received Heat Transfer 201 | . 9 192 Siege Activations . | . . . Martial Activations . | . . . Shielding Activations . | . . . Robots Disrupted . | . . . Combat Hostiles . | . . . Robots Corrupted . | . . . Combat Hostiles . | . . . Parts Fried . | . . . Impact Corruptions . | . . . Robots Melted . | . . . Combat Hostiles . | . . . Parts Melted . | . . . Heat Transferred . | . . . Parts Sabotaged . | . . . Parts Stolen . | . . . Parts Stripped . | . . . Power Chain Reactions 1 | . . 1 Alert | -11 -10 -9 ------- Run | Yrd Mat Mat Maximum Alert Level . | . . . Low Security (%) 100 | 100 100 100 Level 1 . | . . . Level 2 . | . . . Level 3 . | . . . Level 4 . | . . . Level 5 . | . . . High Security . | . . . Max Security . | . . . Peak Influence 123 | . 60 123 Initial 20 | . . 20 Average 36 | . 28 46 Influence Increases 243 | . 70 173 Destroy 0b10 Robot/C 140 | . 60 80 Destroy Leader 40 | . 10 30 Destroy Structure 3 | . . 3 Lose Combat Pursuer 60 | . . 60 Influence Decreases 120 | . 20 100 Entered New Map 30 | . . 30 Time Decay 80 | . 20 60 Lost Part 10 | . . 10 Squads Dispatched 2 | . . 2 Investigation 1 | . . 1 Extermination . | . . . Reinforcement 1 | . . 1 Assault . | . . . Garrison . | . . . Intercept . | . . . Searches Triggered . | . . . Construction Impeded . | . . . Haulers Reinforced . | . . . Active Scanning Responses . | . . . Cargo Convoy Interrupts . | . . . Stealth | -11 -10 -9 --------- Run | Yrd Mat Mat Distress Signals 1 | . . 1 Communications Jammed . | . . . Distress Signals . | . . . Times Spotted 22 | . 8 14 Peak Tracking Total 8 | . 4 8 Tactical Retreats 2 | . . 2 Traps | -11 -10 -9 ------- Run | Yrd Mat Mat Traps Triggered 1 | . . 1 Indirectly . | . . . Trap Hack Attempts . | . . . Triggered . | . . . Disarmed . | . . . Reprogrammed . | . . . Reused . | . . . Traps Extracted . | . . . Installed . | . . . Triggered . | . . . Machines | -11 -10 -9 ---------- Run | Yrd Mat Mat Machines Disabled . | . . . Max in Single Turn . | . . . Machines Repaired . | . . . Machines Dismantled . | . . . Machines Sabotaged . | . . . Overloaded Fab Kills . | . . . Hacking | -11 -10 -9 --------- Run | Yrd Mat Mat Machines Accessed . | . . . Terminals . | . . . Fabricators . | . . . Repair Stations . | . . . Recycling Units . | . . . Scanalyzers . | . . . Garrison Access . | . . . Total Hacks . | . . . Successful . | . . . Failed . | . . . Catastrophic . | . . . Database Lockouts . | . . . Manual . | . . . Terminals . | . . . Fabricators . | . . . Repair Stations . | . . . Recycling Units . | . . . Scanalyzers . | . . . Garrison Access . | . . . Terminal Hacks . | . . . Fabricator Hacks . | . . . Repair Station Hacks . | . . . Recycling Unit Hacks . | . . . Scanalyzer . | . . . Garrison Access Hacks . | . . . Unauthorized Hacks . | . . . Terminals . | . . . Fabricators . | . . . Repair Stations . | . . . Recycling Units . | . . . Scanalyzers . | . . . Garrison Access . | . . . Data Cores Recovered . | . . . Used . | . . . Hacking Detections . | . . . Full Trace Events . | . . . Feedback Events . | . . . Feedback Blocked . | . . . Robot Schematics Acquired . | . . . Robots Built . | . . . Authchips . | . . . Time . | . . . Total Robot Build Rating . | . . . Part Schematics Acquired . | . . . Parts Built . | . . . Authchips . | . . . Time . | . . . Total Part Build Rating . | . . . Parts Repaired . | . . . Time . | . . . Parts Recycled . | . . . Recycled Matter . | . . . Retrieved Matter . | . . . Retrieved Components . | . . . Parts Scanalyzed . | . . . Part Schematics Acquired . | . . . Parts Damaged . | . . . Bothacking | -11 -10 -9 ------------ Run | Yrd Mat Mat Used RIF Installer . | . . . Robots Hacked . | . . . Non-combat . | . . . Combat . | . . . Robot Hacks Applied . | . . . Relay Couplers Released . | . . . Fabnet Peak Effective % . | . . . Robots Rewired . | . . . Allies Hacked . | . . . Hacks Repelled . | . . . Allies | -11 -10 -9 -------- Run | Yrd Mat Mat Total Allies . | . . . Largest Group . | . . . Highest-Rated Group . | . . . Highest-Rated Ally . | . . . Total Orders . | . . . Ally Attacks . | . . . Total Damage . | . . . Kills . | . . . Allies Corrupted . | . . . Allies Melted . | . . . Intel | -11 -10 -9 ------- Run | Yrd Mat Mat Active Infowar (turns) . | . . . Robot Analysis Total . | . . . Derelict Logs Recovered . | . . . Drone Launches . | . . . Drone Recoveries . | . . . Exploration | -11 -10 -9 ------------- Run | Yrd Mat Mat Turns Passed 228 | 21 74 133 Spaces Moved 263 | 39 103 121 Core 97 | 39 46 12 Treads . | . . . Legs . | . . . Wheels . | . . . Hover . | . . . Flight 166 | . 57 109 Fastest Speed 40 | 50 40 40 Average Speed 45 | 50 44 44 Slowest Speed 100 | 50 50 100 Overloaded Moves . | . . . Propulsion Burnouts . | . . . Robots Hopped 7 | . 1 6 Potential Cave-ins . | . . . Cave-ins Triggered . | . . . Exploration Rate (%) 20 | 3 30 27 Regions Visited 2 Branch Regions . Pre-discovered Areas . | . . . Known Exits Taken . | . . . Unknown Exits Taken 2 | 1 1 . Scrap Searched . | . . . Spaces Dug . | . . . Terrain Destroyed 2 | . . 2 Melee . | . . . Projectile . | . . . AOE 2 | . . 2 Terrain Rammed . | . . . Walls Destroyed . | . . . Machines Disabled . | . . . Actions | -11 -10 -9 --------- Run | Yrd Mat Mat Total 322 | 39 119 164 Wait 3 | . 3 . Move 247 | 38 100 109 Hop 7 | . 1 6 Pick Up . | . . . Fast Attach 5 | 1 1 3 Attach . | . . . Detach . | . . . Swap . | . . . Drop 1 | . . 1 Fire 45 | . 12 33 Melee . | . . . Ram . | . . . Kick . | . . . Crush . | . . . Escape Stasis . | . . . Rewire . | . . . Trap . | . . . Miscellaneous 14 | . 2 12 Route ------- -11/Scrapyard -10/Materials -9/Materials (discovered 3 exits: [*Mat] / [*Min] / [*Sto]) History --------- Turn | Location | Event 5 | -11/Scrapyard | Discovered new exit (range 15) 6 | -11/Scrapyard | Upgraded with Propulsion slot (x1) 6 | -11/Scrapyard | Upgraded with Weapon slot (x3) 22 | -11/Scrapyard | Entered Materials 94 | -10/Materials | Discovered new exit (range 4) 96 | -10/Materials | Entered another Materials area 98 | -9/Materials | Reached level 2 126 | -9/Materials | Discovered new exit (range 9) 132 | -9/Materials | Discovered new exit (range 3) 159 | -9/Materials | Discovered new exit (range 4) 222 | -9/Materials | Core integrity fell below 50% 229 | -9/Materials | Self-destructed Last Messages --------------- Flight Unit destroyed. R-06 Scavenger collects Lgt. Armor Plating. R-06 Scavenger collects Lgt. Treads. R-06 Scavenger collects Beam Rifle. Acquired Prototype Energy Gun. Identified Imp. EM Shotgun. Dropped Lgt. Assault Rifle. Acquired Imp. EM Shotgun. G-34 Mercenary destroyed. Switching to secondary target: G-34 Mercenary. Acquired 68 matter. Chain reaction triggered in Ion Engine. G-34 Mercenary destroyed. R-06 Scavenger collects Heat Sink. Nuclear Reactor explodes. G-34 Mercenary destroyed. K-01 Serf collects debris. R-06 Scavenger collects Aluminum Leg. K-01 Serf collects debris. Acquired Sml. Laser. Map ----- +----------------------------------------------------+ | ??????????? "?????????????# / +???< # | | ??????????? ????????????# # #?? # | | ???????????? ???????????# # #?? # | | ?????????????# ????####### ?# #? # | | ?????????????# #### # ? ?# #? # | | ?????????????# # ? ??# # # | | ?????????????# < #? ???# # # | | ?????????????# #? ???# + # | | ????????????????????# ###????# # # | | ????????????????????## ##??????# #######?? | | ?????????????????????# w######### #???????? | | ?????????????????????# #???????? | | ?????????????????????# ###########+###???????? | | ?????????????????????#u r#????????? ????????? | | ?????????????????????#u #???????? ???????? | | ???????????########### #####??? ??????? | | ?????????? #??? ????? | | ?????????? < ### ???? | | ?????????? m # #??? | | ?????????? ####### # #??? | | ??????????? ??????# ![ % #??? | | ???????????????????# [ r = #??? | | ???????????????????# [[ #??? | | ???????????????????# #??? | | ??????????????????## % ? ????? | | ??????????????????#% @ ########????????? | | ??????????????????##* ! #???????????????? | | ???????????????????##### ###???????????????? | | | | | | | | | | | | | | | | | | | | | | | | | | | | | | | | | | | | | | | | | | | | | +----------------------------------------------------+ Best States ------------- Heat Dissipation 25 Energy Generation 5 Energy Capacity 100 Matter Stores 300 Matter Capacity 300 Sight Range 16 Terrain Scan Density 10 Evasion (%) 62 Item Schematics ----------------- None Robot Schematics ------------------ None Fabricated ------------ Nothing Repaired ---------- Nothing Alien Tech Used ----------------- None Achievements -------------- None Challenges ------------ None RPGLIKE | -11 -10 -9 --------- Run | Yrd Mat Mat Levels Raised 1 | . . 1 XP Earned 5400 | 3000 350 2050 XP Spent 2900 | 2900 . . Upgrades 4 | 4 . . Propulsion Slot 1 | 1 . . Weapon Slot 3 | 3 . . Protomatter Created 107 | . 11 96 Integrity Restored 300 | . 33 267 Core 300 | . 33 267 Protomatter Decayed . | . . . Game ------ Seed TowerStormExpander Manual? 0 Play Time 00:04:28 Cumulative 254.6 hours Start 2025.06.05 @ 00:51:55 End 2025.06.05 @ 00:56:35 Sessions 1 Manual Loads 0 Difficulty Rogue Special Mode Winter2019/RPGLIKE Game No. 251 Rogue 62 Adventurer 177 Explorer 12 Win Type - Total 65 Types 19/1/16/2/12/0/4/5/0/6 Lore% 54 Gallery% 52 Achievement% 70 Wizard Run 0 Options --------- Layout 0 ASCII 0 Keyboard 0 Movement Numpad Keybinds 0 Fullscreen 2 Font 12/Smallcaps Map View 83x54 Zoom Use 0% Tactical HUD 0 Map Filters NONE Filters NONE Steam 1 RUN: db8ed387-b266-45c7-a6bc-fa18a63b4859